[Event "January 2 Early 2024"]
[Site "https://www.chess.com"]
[Date "2024.01.02"]
[Round "10"]
[White "Pavlidou, Ekaterini"]
[Black "Cornelison, Paul"]
[Result "1-0"]
[Board "162"]
[TimeControl "180+1"]
[WhiteFideId "4213262"]
[BlackFideId "2004186"]
[WhiteElo "2325"]
[BlackElo "1965"]
[WhiteTeam "GRE"]
[BlackTeam "USA"]
[WhiteClock "0:01:29"]
[BlackClock "0:00:00"]

1. d4 {[%clk 0:03:00]}  Nf6 {[%clk 0:02:59]} 2. c4 {[%clk 0:03:00]}  e5 {[%clk 0:02:59]} 3. dxe5 {[%clk 0:03:00]}  Ne4 {[%clk 0:02:59]} 4. Bf4 {[%clk 0:02:58]}  Nc6 {[%clk 0:02:54]} 5. a3 {[%clk 0:02:57]}  Bc5 {[%clk 0:02:50]} 6. e3 {[%clk 0:02:55]}  Qe7 {[%clk 0:02:40]} 7. Nf3 {[%clk 0:02:42]}  h6 {[%clk 0:02:23]} 8. b4 {[%clk 0:02:42]}  Nxb4 {[%clk 0:02:09]} 9. axb4 {[%clk 0:02:40]}  Bxb4+ {[%clk 0:02:10]} 10. Nbd2 {[%clk 0:02:33]}  g5 {[%clk 0:02:03]} 11. Bg3 {[%clk 0:02:31]}  g4 {[%clk 0:01:39]} 12. Qc2 {[%clk 0:02:31]}  Nxg3 {[%clk 0:00:43]} 13. hxg3 {[%clk 0:02:28]}  gxf3 {[%clk 0:00:43]} 14. gxf3 {[%clk 0:02:25]}  Qxe5 {[%clk 0:00:41]} 15. Rb1 {[%clk 0:02:24]}  a5 {[%clk 0:00:20]} 16. f4 {[%clk 0:02:24]}  Qe7 {[%clk 0:00:19]} 17. Bg2 {[%clk 0:02:21]}  c6 {[%clk 0:00:18]} 18. Rh5 {[%clk 0:02:16]}  d6 {[%clk 0:00:17]} 19. c5 {[%clk 0:02:12]}  Bg4 {[%clk 0:00:18]} 20. cxd6 {[%clk 0:02:10]}  Qxd6 {[%clk 0:00:18]} 21. Re5+ {[%clk 0:02:09]}  Kf8 {[%clk 0:00:17]} 22. f3 {[%clk 0:01:56]}  Be6 {[%clk 0:00:13]} 23. Ke2 {[%clk 0:01:56]}  Rd8 {[%clk 0:00:12]} 24. Ne4 {[%clk 0:01:52]}  Qc7 {[%clk 0:00:08]} 25. Nc5 {[%clk 0:01:40]}  Rd2+ {[%clk 0:00:05]} 26. Qxd2 {[%clk 0:01:40]}  Bxd2 {[%clk 0:00:05]} 27. Rxb7 {[%clk 0:01:38]}  Qxe5 {[%clk 0:00:03]} 28. fxe5 {[%clk 0:01:37]}  Bb4 {[%clk 0:00:02]} 29. Nxe6+ {[%clk 0:01:34]}  fxe6 {[%clk 0:00:03]} 30. f4 {[%clk 0:01:34]}  Rg8 {[%clk 0:00:03]} 31. Kf2 {[%clk 0:01:31]}  Rg7 {[%clk 0:00:03]} 32. Rb8+ {[%clk 0:01:30]}  Ke7 {[%clk 0:00:00]} 33. Bxc6 {[%clk 0:01:29]} 1-0

[Event "January 2 Early 2024"]
[Site "https://www.chess.com"]
[Date "2024.01.02"]
[Round "10"]
[White "Mende, Andreas"]
[Black "Zepeda Berlanga, Jan Enrique"]
[Result "1-0"]
[Board "167"]
[TimeControl "180+1"]
[WhiteFideId "4631102"]
[BlackFideId "5132355"]
[WhiteElo "2143"]
[BlackElo "1961"]
[WhiteTeam "GER"]
[BlackTeam "MEX"]
[WhiteClock "0:00:45"]
[BlackClock "0:00:19"]

1. c4 {[%clk 0:03:00]}  Nf6 {[%clk 0:02:52]} 2. g3 {[%clk 0:03:00]}  g6 {[%clk 0:02:52]} 3. Bg2 {[%clk 0:03:01]}  Bg7 {[%clk 0:02:51]} 4. Nc3 {[%clk 0:03:01]}  O-O {[%clk 0:02:50]} 5. e4 {[%clk 0:03:01]}  d6 {[%clk 0:02:50]} 6. Nge2 {[%clk 0:03:02]}  Nc6 {[%clk 0:02:46]} 7. O-O {[%clk 0:03:01]}  e5 {[%clk 0:02:45]} 8. d3 {[%clk 0:03:01]}  Be6 {[%clk 0:02:44]} 9. Nd5 {[%clk 0:03:00]}  Nd4 {[%clk 0:02:38]} 10. Nxd4 {[%clk 0:02:52]}  exd4 {[%clk 0:02:37]} 11. Bg5 {[%clk 0:02:40]}  Bxd5 {[%clk 0:02:32]} 12. cxd5 {[%clk 0:02:38]}  h6 {[%clk 0:02:33]} 13. Bd2 {[%clk 0:02:36]}  c5 {[%clk 0:02:31]} 14. b4 {[%clk 0:02:34]}  Rc8 {[%clk 0:02:27]} 15. Rc1 {[%clk 0:02:25]}  b6 {[%clk 0:02:26]} 16. bxc5 {[%clk 0:02:23]}  bxc5 {[%clk 0:02:26]} 17. Qa4 {[%clk 0:02:22]}  Qd7 {[%clk 0:02:14]} 18. Qa6 {[%clk 0:02:17]}  Rb8 {[%clk 0:01:58]} 19. Rb1 {[%clk 0:02:14]}  Rfc8 {[%clk 0:01:42]} 20. h4 {[%clk 0:02:11]}  Ne8 {[%clk 0:01:35]} 21. Kh2 {[%clk 0:02:00]}  f5 {[%clk 0:01:28]} 22. Bh3 {[%clk 0:01:56]}  Qf7 {[%clk 0:01:21]} 23. exf5 {[%clk 0:01:32]}  gxf5 {[%clk 0:01:19]} 24. Rxb8 {[%clk 0:01:20]}  Rxb8 {[%clk 0:01:17]} 25. Bf4 {[%clk 0:01:18]}  Qxd5 {[%clk 0:01:13]} 26. Qxa7 {[%clk 0:01:14]}  Rb7 {[%clk 0:00:59]} 27. Qa8 {[%clk 0:01:11]}  Qc6 {[%clk 0:00:50]} 28. Bg2 {[%clk 0:01:09]}  d5 {[%clk 0:00:44]} 29. Re1 {[%clk 0:00:57]}  Kf7 {[%clk 0:00:24]} 30. Bxd5+ {[%clk 0:00:46]}  Qxd5 {[%clk 0:00:24]} 31. Qxe8+ {[%clk 0:00:46]}  Kf6 {[%clk 0:00:19]} 32. Be5+ {[%clk 0:00:45]} 1-0

[Event "January 2 Early 2024"]
[Site "https://www.chess.com"]
[Date "2024.01.02"]
[Round "10"]
[White "Thake, Conrad"]
[Black "Khegay, Yuliya"]
[Result "0-1"]
[Board "168"]
[TimeControl "180+1"]
[WhiteFideId "5602947"]
[BlackFideId "14205394"]
[WhiteElo "1884"]
[BlackElo "2116"]
[WhiteTeam "MLT"]
[BlackTeam "UZB"]
[WhiteClock "0:00:18"]
[BlackClock "0:00:05"]

1. e4 {[%clk 0:03:00]}  c5 {[%clk 0:02:52]} 2. Nc3 {[%clk 0:02:54]}  Nc6 {[%clk 0:02:52]} 3. f4 {[%clk 0:02:54]}  g6 {[%clk 0:02:50]} 4. Nf3 {[%clk 0:02:53]}  Bg7 {[%clk 0:02:50]} 5. Bb5 {[%clk 0:02:49]}  Nd4 {[%clk 0:02:51]} 6. Nxd4 {[%clk 0:02:47]}  Bxd4 {[%clk 0:02:49]} 7. Ne2 {[%clk 0:02:46]}  Bg7 {[%clk 0:02:44]} 8. a4 {[%clk 0:02:40]}  a6 {[%clk 0:02:34]} 9. Bc4 {[%clk 0:02:39]}  e6 {[%clk 0:02:34]} 10. d3 {[%clk 0:02:29]}  d5 {[%clk 0:02:33]} 11. Bb3 {[%clk 0:02:29]}  dxe4 {[%clk 0:02:34]} 12. dxe4 {[%clk 0:02:28]}  Qxd1+ {[%clk 0:02:34]} 13. Kxd1 {[%clk 0:02:28]}  Bd7 {[%clk 0:02:07]} 14. c3 {[%clk 0:02:25]}  Bc6 {[%clk 0:01:53]} 15. Ng3 {[%clk 0:02:08]}  Nf6 {[%clk 0:01:16]} 16. Bc2 {[%clk 0:02:04]}  O-O-O+ {[%clk 0:01:04]} 17. Ke2 {[%clk 0:02:04]}  Rhe8 {[%clk 0:00:41]} 18. Be3 {[%clk 0:02:04]}  c4 {[%clk 0:00:14]} 19. Rhd1 {[%clk 0:02:02]}  e5 {[%clk 0:00:13]} 20. f5 {[%clk 0:01:56]}  Ng4 {[%clk 0:00:10]} 21. Rxd8+ {[%clk 0:01:52]}  Rxd8 {[%clk 0:00:09]} 22. h3 {[%clk 0:01:45]}  Nxe3 {[%clk 0:00:09]} 23. Kxe3 {[%clk 0:01:42]}  Bh6+ {[%clk 0:00:10]} 24. Kf3 {[%clk 0:01:40]}  Rd2 {[%clk 0:00:07]} 25. Bd1 {[%clk 0:01:21]}  Bf4 {[%clk 0:00:07]} 26. Ne2 {[%clk 0:01:14]}  Rd3+ {[%clk 0:00:07]} 27. Kf2 {[%clk 0:01:09]}  Bxe4 {[%clk 0:00:06]} 28. Nxf4 {[%clk 0:01:07]}  exf4 {[%clk 0:00:07]} 29. fxg6 {[%clk 0:01:00]}  hxg6 {[%clk 0:00:07]} 30. b4 {[%clk 0:00:54]}  cxb3 {[%clk 0:00:06]} 31. Bxb3 {[%clk 0:00:54]}  Rxc3 {[%clk 0:00:07]} 32. Bxf7 {[%clk 0:00:54]}  Rc2+ {[%clk 0:00:05]} 33. Ke1 {[%clk 0:00:51]}  Rxg2 {[%clk 0:00:05]} 34. Rc1+ {[%clk 0:00:49]}  Bc6 {[%clk 0:00:04]} 35. Be6+ {[%clk 0:00:47]}  Kc7 {[%clk 0:00:04]} 36. Bg4 {[%clk 0:00:44]}  Rg1+ {[%clk 0:00:04]} 37. Kd2 {[%clk 0:00:44]}  Rxc1 {[%clk 0:00:05]} 38. Kxc1 {[%clk 0:00:44]}  Bxa4 {[%clk 0:00:05]} 39. Kd2 {[%clk 0:00:43]}  Bc6 {[%clk 0:00:06]} 40. Kd3 {[%clk 0:00:42]}  Kd6 {[%clk 0:00:06]} 41. h4 {[%clk 0:00:42]}  Ke5 {[%clk 0:00:06]} 42. h5 {[%clk 0:00:41]}  gxh5 {[%clk 0:00:06]} 43. Bxh5 {[%clk 0:00:41]}  b5 {[%clk 0:00:06]} 44. Bd1 {[%clk 0:00:36]}  a5 {[%clk 0:00:06]} 45. Ke2 {[%clk 0:00:35]}  Kd4 {[%clk 0:00:06]} 46. Bc2 {[%clk 0:00:34]}  f3+ {[%clk 0:00:05]} 47. Kf2 {[%clk 0:00:34]}  Kc3 {[%clk 0:00:06]} 48. Bg6 {[%clk 0:00:32]}  b4 {[%clk 0:00:06]} 49. Bf7 {[%clk 0:00:33]}  b3 {[%clk 0:00:06]} 50. Bg6 {[%clk 0:00:31]}  a4 {[%clk 0:00:05]} 51. Ke3 {[%clk 0:00:30]}  a3 {[%clk 0:00:05]} 52. Bh7 {[%clk 0:00:18]}  a2 {[%clk 0:00:05]} 0-1

[Event "January 2 Early 2024"]
[Site "https://www.chess.com"]
[Date "2024.01.02"]
[Round "10"]
[White "Viana, Valeria"]
[Black "Petersson, Kjell"]
[Result "0-1"]
[Board "171"]
[TimeControl "180+1"]
[WhiteFideId "8407100"]
[BlackFideId "1705148"]
[WhiteElo "2091"]
[BlackElo "2126"]
[WhiteTeam "HON"]
[BlackTeam "SWE"]
[WhiteClock "0:00:01"]
[BlackClock "0:00:17"]

1. e4 {[%clk 0:03:00]}  c5 {[%clk 0:02:59]} 2. Nf3 {[%clk 0:02:58]}  d6 {[%clk 0:03:00]} 3. Bb5+ {[%clk 0:02:57]}  Nc6 {[%clk 0:02:58]} 4. d4 {[%clk 0:02:53]}  cxd4 {[%clk 0:02:56]} 5. Qxd4 {[%clk 0:02:49]}  Bd7 {[%clk 0:02:55]} 6. Bxc6 {[%clk 0:02:48]}  Bxc6 {[%clk 0:02:56]} 7. O-O {[%clk 0:02:47]}  Nf6 {[%clk 0:02:54]} 8. Nc3 {[%clk 0:02:39]}  e6 {[%clk 0:02:52]} 9. Bg5 {[%clk 0:02:38]}  Be7 {[%clk 0:02:51]} 10. Rfe1 {[%clk 0:02:32]}  O-O {[%clk 0:02:50]} 11. h3 {[%clk 0:02:27]}  a6 {[%clk 0:02:37]} 12. a4 {[%clk 0:02:25]}  h6 {[%clk 0:02:36]} 13. Bh4 {[%clk 0:02:24]}  Rc8 {[%clk 0:02:22]} 14. Bg3 {[%clk 0:02:04]}  d5 {[%clk 0:02:12]} 15. e5 {[%clk 0:01:52]}  Nd7 {[%clk 0:02:07]} 16. b4 {[%clk 0:01:44]}  Qb6 {[%clk 0:02:00]} 17. Qxb6 {[%clk 0:01:42]}  Nxb6 {[%clk 0:02:00]} 18. Reb1 {[%clk 0:01:31]}  Bd7 {[%clk 0:01:50]} 19. Rb3 {[%clk 0:01:27]}  Rc4 {[%clk 0:01:43]} 20. a5 {[%clk 0:01:18]}  Na8 {[%clk 0:01:38]} 21. Nd2 {[%clk 0:01:02]}  Rxb4 {[%clk 0:01:37]} 22. Rab1 {[%clk 0:00:59]}  Rxb3 {[%clk 0:01:29]} 23. Rxb3 {[%clk 0:00:59]}  Bc6 {[%clk 0:01:29]} 24. Nf3 {[%clk 0:00:54]}  Bc5 {[%clk 0:01:23]} 25. Ne2 {[%clk 0:00:47]}  Rb8 {[%clk 0:01:19]} 26. Ned4 {[%clk 0:00:47]}  Ba4 {[%clk 0:01:19]} 27. Rb2 {[%clk 0:00:43]}  Nc7 {[%clk 0:01:16]} 28. c3 {[%clk 0:00:35]}  Nb5 {[%clk 0:01:16]} 29. Nxb5 {[%clk 0:00:33]}  Bxb5 {[%clk 0:01:17]} 30. Nd4 {[%clk 0:00:32]}  Bc4 {[%clk 0:01:13]} 31. Bf4 {[%clk 0:00:22]}  b5 {[%clk 0:01:03]} 32. axb6 {[%clk 0:00:19]}  Rxb6 {[%clk 0:01:03]} 33. Rxb6 {[%clk 0:00:19]}  Bxb6 {[%clk 0:01:04]} 34. Bc1 {[%clk 0:00:18]}  a5 {[%clk 0:01:03]} 35. Ba3 {[%clk 0:00:18]}  a4 {[%clk 0:01:01]} 36. f3 {[%clk 0:00:17]}  Bxd4+ {[%clk 0:00:56]} 37. cxd4 {[%clk 0:00:17]}  f6 {[%clk 0:00:57]} 38. exf6 {[%clk 0:00:16]}  gxf6 {[%clk 0:00:57]} 39. Kf2 {[%clk 0:00:17]}  Kf7 {[%clk 0:00:55]} 40. Ke3 {[%clk 0:00:17]}  e5 {[%clk 0:00:56]} 41. dxe5 {[%clk 0:00:16]}  fxe5 {[%clk 0:00:56]} 42. f4 {[%clk 0:00:16]}  exf4+ {[%clk 0:00:43]} 43. Kxf4 {[%clk 0:00:15]}  Ke6 {[%clk 0:00:43]} 44. g4 {[%clk 0:00:14]}  Bd3 {[%clk 0:00:36]} 45. h4 {[%clk 0:00:11]}  d4 {[%clk 0:00:35]} 46. g5 {[%clk 0:00:09]}  hxg5+ {[%clk 0:00:35]} 47. hxg5 {[%clk 0:00:09]}  Kd5 {[%clk 0:00:34]} 48. Kf3 {[%clk 0:00:08]}  Kc4 {[%clk 0:00:29]} 49. Kf2 {[%clk 0:00:07]}  Kb3 {[%clk 0:00:28]} 50. Bc5 {[%clk 0:00:08]}  Kc4 {[%clk 0:00:26]} 51. Ba3 {[%clk 0:00:08]}  Kc3 {[%clk 0:00:23]} 52. Bc5 {[%clk 0:00:07]}  Be4 {[%clk 0:00:17]} 53. Ke2 {[%clk 0:00:06]}  d3+ {[%clk 0:00:17]} 54. Kd1 {[%clk 0:00:06]}  Bf3+ {[%clk 0:00:17]} 55. Ke1 {[%clk 0:00:04]}  d2+ {[%clk 0:00:17]} 56. Kf2 {[%clk 0:00:01]}  d1=Q {[%clk 0:00:17]} 0-1

[Event "January 2 Early 2024"]
[Site "https://www.chess.com"]
[Date "2024.01.02"]
[Round "11"]
[White "Carlsen, Magnus"]
[Black "Mamedyarov, Shakhriyar"]
[Result "1-0"]
[Board "1"]
[TimeControl "180+1"]
[WhiteFideId "1503014"]
[BlackFideId "13401319"]
[WhiteElo "3368"]
[BlackElo "3096"]
[WhiteTeam "NOR"]
[BlackTeam "AZE"]
[WhiteClock "0:00:28"]
[BlackClock "0:00:00"]

1. Nf3 {[%clk 0:02:59]}  d5 {[%clk 0:02:57]} 2. b3 {[%clk 0:02:58]}  Nf6 {[%clk 0:02:56]} 3. Bb2 {[%clk 0:02:58]}  g6 {[%clk 0:02:56]} 4. c4 {[%clk 0:02:58]}  dxc4 {[%clk 0:02:55]} 5. bxc4 {[%clk 0:02:58]}  Bg7 {[%clk 0:02:55]} 6. g3 {[%clk 0:02:58]}  b6 {[%clk 0:02:54]} 7. Bg2 {[%clk 0:02:58]}  Bb7 {[%clk 0:02:55]} 8. Qa4+ {[%clk 0:02:49]}  Nbd7 {[%clk 0:02:40]} 9. O-O {[%clk 0:02:48]}  c5 {[%clk 0:02:36]} 10. d3 {[%clk 0:02:48]}  O-O {[%clk 0:02:36]} 11. Nbd2 {[%clk 0:02:45]}  Qc7 {[%clk 0:02:35]} 12. Qc2 {[%clk 0:02:45]}  Rfe8 {[%clk 0:02:26]} 13. a4 {[%clk 0:02:44]}  e5 {[%clk 0:02:27]} 14. e4 {[%clk 0:02:43]}  Nf8 {[%clk 0:02:21]} 15. Nb1 {[%clk 0:02:42]}  N6d7 {[%clk 0:02:19]} 16. Nc3 {[%clk 0:02:43]}  Ne6 {[%clk 0:02:18]} 17. Nd5 {[%clk 0:02:43]}  Qd6 {[%clk 0:02:18]} 18. a5 {[%clk 0:02:43]}  Nd4 {[%clk 0:02:17]} 19. Nxd4 {[%clk 0:02:43]}  exd4 {[%clk 0:02:09]} 20. f4 {[%clk 0:02:41]}  f6 {[%clk 0:02:03]} 21. Bc1 {[%clk 0:02:39]}  Bxd5 {[%clk 0:01:58]} 22. cxd5 {[%clk 0:02:35]}  b5 {[%clk 0:01:59]} 23. a6 {[%clk 0:02:29]}  Rec8 {[%clk 0:01:57]} 24. Bh3 {[%clk 0:02:26]}  c4 {[%clk 0:01:45]} 25. Ba3 {[%clk 0:02:21]}  b4 {[%clk 0:01:35]} 26. Bxb4 {[%clk 0:02:21]}  Qxb4 {[%clk 0:01:36]} 27. Bxd7 {[%clk 0:02:21]}  cxd3 {[%clk 0:01:36]} 28. Qa4 {[%clk 0:02:05]}  Qd2 {[%clk 0:01:00]} 29. Be6+ {[%clk 0:01:55]}  Kh8 {[%clk 0:00:59]} 30. Bxc8 {[%clk 0:01:55]}  Rxc8 {[%clk 0:01:00]} 31. Qd7 {[%clk 0:01:51]}  Qe3+ {[%clk 0:00:47]} 32. Rf2 {[%clk 0:01:46]}  Rg8 {[%clk 0:00:30]} 33. Rd1 {[%clk 0:01:44]}  Qxe4 {[%clk 0:00:24]} 34. Qxa7 {[%clk 0:01:35]}  g5 {[%clk 0:00:23]} 35. Qc7 {[%clk 0:01:30]}  Qxd5 {[%clk 0:00:10]} 36. Rxd3 {[%clk 0:01:24]}  Qe4 {[%clk 0:00:10]} 37. Rd1 {[%clk 0:01:18]}  f5 {[%clk 0:00:09]} 38. Qc4 {[%clk 0:01:00]}  gxf4 {[%clk 0:00:08]} 39. Re2 {[%clk 0:00:50]}  Qf3 {[%clk 0:00:07]} 40. Qd3 {[%clk 0:00:43]}  Qg4 {[%clk 0:00:06]} 41. Rf1 {[%clk 0:00:28]}  fxg3 {[%clk 0:00:06]} 42. hxg3 {[%clk 0:00:29]}  Be5 {[%clk 0:00:00]} 43. Rxe5 {[%clk 0:00:28]} 1-0

[Event "January 2 Early 2024"]
[Site "https://www.chess.com"]
[Date "2024.01.02"]
[Round "11"]
[White "Vachier-Lagrave, Maxime"]
[Black "Sadhwani, Raunak"]
[Result "1-0"]
[Board "2"]
[TimeControl "180+1"]
[WhiteFideId "623539"]
[BlackFideId "35093487"]
[WhiteElo "3198"]
[BlackElo "3090"]
[WhiteTeam "FRA"]
[BlackTeam "IND"]
[WhiteClock "0:00:08"]
[BlackClock "0:00:02"]

1. e4 {[%clk 0:03:00]}  e5 {[%clk 0:02:59]} 2. Nf3 {[%clk 0:03:01]}  Nc6 {[%clk 0:02:59]} 3. Bb5 {[%clk 0:03:01]}  Nf6 {[%clk 0:02:59]} 4. O-O {[%clk 0:03:01]}  Nxe4 {[%clk 0:02:59]} 5. Re1 {[%clk 0:03:01]}  Nd6 {[%clk 0:02:59]} 6. Nxe5 {[%clk 0:03:02]}  Be7 {[%clk 0:02:59]} 7. Bf1 {[%clk 0:03:02]}  Nxe5 {[%clk 0:02:59]} 8. Rxe5 {[%clk 0:03:03]}  O-O {[%clk 0:03:00]} 9. d4 {[%clk 0:03:04]}  Bf6 {[%clk 0:02:59]} 10. Re2 {[%clk 0:03:05]}  Nc4 {[%clk 0:03:00]} 11. b3 {[%clk 0:03:00]}  Nb6 {[%clk 0:03:00]} 12. Qd3 {[%clk 0:03:01]}  Nd5 {[%clk 0:02:53]} 13. c3 {[%clk 0:02:46]}  d6 {[%clk 0:02:48]} 14. Re1 {[%clk 0:02:40]}  g6 {[%clk 0:02:30]} 15. Nd2 {[%clk 0:02:35]}  Bg7 {[%clk 0:02:27]} 16. Qf3 {[%clk 0:02:33]}  Nf6 {[%clk 0:02:26]} 17. a4 {[%clk 0:02:26]}  Rb8 {[%clk 0:02:12]} 18. h3 {[%clk 0:02:24]}  Be6 {[%clk 0:02:10]} 19. a5 {[%clk 0:02:21]}  Qd7 {[%clk 0:02:02]} 20. Bb2 {[%clk 0:02:18]}  Rfe8 {[%clk 0:01:55]} 21. c4 {[%clk 0:02:02]}  d5 {[%clk 0:01:54]} 22. Bd3 {[%clk 0:02:00]}  c6 {[%clk 0:01:53]} 23. Nf1 {[%clk 0:01:53]}  h5 {[%clk 0:01:44]} 24. Ne3 {[%clk 0:01:51]}  Ne4 {[%clk 0:01:38]} 25. Qf4 {[%clk 0:01:18]}  Qd6 {[%clk 0:01:18]} 26. Qxd6 {[%clk 0:01:15]}  Nxd6 {[%clk 0:01:19]} 27. c5 {[%clk 0:01:10]}  Ne4 {[%clk 0:01:14]} 28. b4 {[%clk 0:01:09]}  a6 {[%clk 0:01:10]} 29. f3 {[%clk 0:00:52]}  Nf6 {[%clk 0:01:07]} 30. h4 {[%clk 0:00:51]}  Bd7 {[%clk 0:01:07]} 31. Kf2 {[%clk 0:00:52]}  Bh6 {[%clk 0:01:05]} 32. g3 {[%clk 0:00:44]}  Re6 {[%clk 0:01:02]} 33. Ng2 {[%clk 0:00:44]}  Rxe1 {[%clk 0:01:00]} 34. Rxe1 {[%clk 0:00:45]}  Re8 {[%clk 0:01:00]} 35. Rh1 {[%clk 0:00:41]}  Bd2 {[%clk 0:00:56]} 36. Rb1 {[%clk 0:00:37]}  Bh6 {[%clk 0:00:47]} 37. Bc1 {[%clk 0:00:36]}  Bxc1 {[%clk 0:00:46]} 38. Rxc1 {[%clk 0:00:37]}  Kg7 {[%clk 0:00:45]} 39. Nf4 {[%clk 0:00:33]}  Nh7 {[%clk 0:00:41]} 40. Bb1 {[%clk 0:00:31]}  Nf8 {[%clk 0:00:17]} 41. Rd1 {[%clk 0:00:32]}  Ne6 {[%clk 0:00:15]} 42. Ng2 {[%clk 0:00:32]}  Kf6 {[%clk 0:00:13]} 43. Ne3 {[%clk 0:00:31]}  Ng7 {[%clk 0:00:14]} 44. Bc2 {[%clk 0:00:29]}  Bf5 {[%clk 0:00:13]} 45. Bb3 {[%clk 0:00:25]}  Bd7 {[%clk 0:00:13]} 46. Bc2 {[%clk 0:00:12]}  Bf5 {[%clk 0:00:13]} 47. Ba4 {[%clk 0:00:12]}  Be6 {[%clk 0:00:11]} 48. Re1 {[%clk 0:00:13]}  Nf5 {[%clk 0:00:07]} 49. Nxd5+ {[%clk 0:00:12]}  Kg7 {[%clk 0:00:08]} 50. Nc7 {[%clk 0:00:12]}  Re7 {[%clk 0:00:08]} 51. d5 {[%clk 0:00:10]}  Rxc7 {[%clk 0:00:07]} 52. dxe6 {[%clk 0:00:10]}  Kf6 {[%clk 0:00:07]} 53. Bb3 {[%clk 0:00:08]}  fxe6 {[%clk 0:00:05]} 54. Rxe6+ {[%clk 0:00:09]}  Kg7 {[%clk 0:00:06]} 55. Bc2 {[%clk 0:00:08]}  Ne7 {[%clk 0:00:05]} 56. Rd6 {[%clk 0:00:07]}  Kf7 {[%clk 0:00:05]} 57. Be4 {[%clk 0:00:07]}  Kg7 {[%clk 0:00:02]} 58. Ke3 {[%clk 0:00:08]} 1-0

[Event "January 2 Early 2024"]
[Site "https://www.chess.com"]
[Date "2024.01.02"]
[Round "11"]
[White "Firouzja, Alireza"]
[Black "Svane, Frederik"]
[Result "1-0"]
[Board "4"]
[TimeControl "180+1"]
[WhiteFideId "12573981"]
[BlackFideId "12923044"]
[WhiteElo "3155"]
[BlackElo "3044"]
[WhiteTeam "FRA"]
[BlackTeam "GER"]
[WhiteClock "0:00:03"]
[BlackClock "0:00:02"]

1. d4 {[%clk 0:03:00]}  Nf6 {[%clk 0:02:59]} 2. c4 {[%clk 0:03:00]}  e6 {[%clk 0:03:00]} 3. g3 {[%clk 0:03:01]}  d5 {[%clk 0:03:00]} 4. Bg2 {[%clk 0:03:01]}  Be7 {[%clk 0:03:00]} 5. Nf3 {[%clk 0:03:01]}  O-O {[%clk 0:03:00]} 6. O-O {[%clk 0:03:02]}  dxc4 {[%clk 0:03:01]} 7. Nc3 {[%clk 0:03:03]}  Nc6 {[%clk 0:03:00]} 8. e4 {[%clk 0:03:03]}  Rb8 {[%clk 0:02:59]} 9. a4 {[%clk 0:02:56]}  a6 {[%clk 0:02:59]} 10. Be3 {[%clk 0:02:54]}  b5 {[%clk 0:02:55]} 11. axb5 {[%clk 0:02:54]}  axb5 {[%clk 0:02:56]} 12. d5 {[%clk 0:02:55]}  exd5 {[%clk 0:02:55]} 13. exd5 {[%clk 0:02:55]}  Nb4 {[%clk 0:02:55]} 14. Nd4 {[%clk 0:02:42]}  Bb7 {[%clk 0:02:47]} 15. Nf5 {[%clk 0:02:36]}  Bd6 {[%clk 0:02:23]} 16. Bd4 {[%clk 0:02:33]}  Nd3 {[%clk 0:02:18]} 17. Nxg7 {[%clk 0:02:15]}  Kxg7 {[%clk 0:01:58]} 18. Qg4+ {[%clk 0:02:14]}  Kh8 {[%clk 0:01:56]} 19. Qf5 {[%clk 0:02:07]}  Be5 {[%clk 0:01:51]} 20. Bxe5 {[%clk 0:02:05]}  Nxe5 {[%clk 0:01:52]} 21. Qxe5 {[%clk 0:02:06]}  Qd6 {[%clk 0:01:41]} 22. Qxd6 {[%clk 0:01:32]}  cxd6 {[%clk 0:01:40]} 23. Nxb5 {[%clk 0:01:33]}  Bxd5 {[%clk 0:01:37]} 24. Nxd6 {[%clk 0:01:34]}  Bxg2 {[%clk 0:01:24]} 25. Kxg2 {[%clk 0:01:33]}  Rxb2 {[%clk 0:01:25]} 26. Nxc4 {[%clk 0:01:32]}  Rc2 {[%clk 0:01:24]} 27. Ne5 {[%clk 0:01:25]}  Re2 {[%clk 0:01:24]} 28. Nd3 {[%clk 0:01:12]}  Kg7 {[%clk 0:01:19]} 29. Nf4 {[%clk 0:01:10]}  Rd2 {[%clk 0:01:16]} 30. Ra5 {[%clk 0:01:05]}  h6 {[%clk 0:01:12]} 31. Rf5 {[%clk 0:01:03]}  Rc8 {[%clk 0:01:04]} 32. h3 {[%clk 0:00:58]}  Rcc2 {[%clk 0:00:50]} 33. g4 {[%clk 0:00:58]}  Ra2 {[%clk 0:00:42]} 34. Re5 {[%clk 0:00:47]}  Ra4 {[%clk 0:00:42]} 35. Kg3 {[%clk 0:00:45]}  Ne4+ {[%clk 0:00:42]} 36. Kh4 {[%clk 0:00:43]}  Nf6 {[%clk 0:00:26]} 37. Rf5 {[%clk 0:00:41]}  Rdd4 {[%clk 0:00:23]} 38. Ne2 {[%clk 0:00:36]}  Rd5 {[%clk 0:00:23]} 39. Ng3 {[%clk 0:00:14]}  Rxf5 {[%clk 0:00:18]} 40. Nxf5+ {[%clk 0:00:15]}  Kg6 {[%clk 0:00:19]} 41. Ne7+ {[%clk 0:00:10]}  Kg7 {[%clk 0:00:19]} 42. f4 {[%clk 0:00:11]}  Rb4 {[%clk 0:00:08]} 43. Nf5+ {[%clk 0:00:11]}  Kg6 {[%clk 0:00:08]} 44. Ng3 {[%clk 0:00:12]}  Ra4 {[%clk 0:00:07]} 45. f5+ {[%clk 0:00:10]}  Kg7 {[%clk 0:00:07]} 46. Rc1 {[%clk 0:00:10]}  Rb4 {[%clk 0:00:07]} 47. Rc6 {[%clk 0:00:10]}  Rb3 {[%clk 0:00:07]} 48. Ra6 {[%clk 0:00:09]}  Rb4 {[%clk 0:00:07]} 49. Ra7 {[%clk 0:00:04]}  Rc4 {[%clk 0:00:07]} 50. Re7 {[%clk 0:00:04]}  Rb4 {[%clk 0:00:07]} 51. Rc7 {[%clk 0:00:04]}  Ra4 {[%clk 0:00:08]} 52. Rc6 {[%clk 0:00:03]}  Rb4 {[%clk 0:00:08]} 53. Nh5+ {[%clk 0:00:03]}  Nxh5 {[%clk 0:00:08]} 54. Kxh5 {[%clk 0:00:04]}  Rb3 {[%clk 0:00:07]} 55. h4 {[%clk 0:00:05]}  Rg3 {[%clk 0:00:05]} 56. f6+ {[%clk 0:00:02]}  Kh7 {[%clk 0:00:06]} 57. Rc7 {[%clk 0:00:03]}  Kg8 {[%clk 0:00:02]} 58. Rc8+ {[%clk 0:00:03]}  Kh7 {[%clk 0:00:02]} 59. Rf8 {[%clk 0:00:04]}  Rb3 {[%clk 0:00:02]} 60. Rxf7+ {[%clk 0:00:03]}  Kh8 {[%clk 0:00:02]} 1-0